Cogmind - Beta 10.2 @@@ ROGUE MODE // 2021.05.18 @ 12:41:39 Player: silmarilion6 Result: Destroyed by Y-45 Defender with Heavy Assault Rifle Performance ------------- Evolutions (1) 500 Regions Visited (2) 400 Robots Destroyed (14) 70 Value Destroyed (316) 316 Prototype IDs (1) 20 Alien Tech Used (0) 0 Bonus (0) 0 TOTAL SCORE: 1306 Bonus ------- None Cogmind --------- Core Integrity 0/400 Matter 300/300 Energy 100/100 System Corruption 0% Temperature Cool (9) Movement Core (550) Ox10 Location -9/Materials Parts ------- > --- POWER (1) -------- (None) > --- PROPULSION (3) --- (None) > --- UTILITY (3) ------ Large Storage Unit Large Storage Unit > --- WEAPON (2) ------- (None) > --- INVENTORY (16) --- Ion Engine Heavy Ion Engine Heavy Ion Engine Heavy Ion Engine Aluminum Leg Medium Storage Unit Medium Armor Plating Medium Armor Plating Peak State ------------ > --- POWER ------------ Heavy Ion Engine > --- PROPULSION ------- Aluminum Leg Aluminum Leg Aluminum Leg > --- UTILITY ---------- Large Storage Unit Large Storage Unit Medium Armor Plating > --- WEAPON ----------- Medium Laser Plasma Cutter > --- INVENTORY -------- Ion Engine Heavy Ion Engine Heavy Ion Engine Heavy Ion Engine Aluminum Leg Medium Storage Unit Medium Armor Plating Medium Armor Plating Medium Armor Plating Light Assault Rifle Grenade Launcher [Rating: 15] Favorites ----------- Power Light Ion Engine Engine Light Ion Engine Propulsion Aluminum Leg Leg Aluminum Leg Utility Large Storage Unit Storage Large Storage Unit Protection Medium Armor Plating Weapon Light Assault Rifle Energy Gun Medium Laser Ballistic Gun Light Assault Rifle Launcher Grenade Launcher Special Weapon Mining Laser Build | -11 -10 -9 ------- Run | Scr Mat Mat Slots Evolved 2 | . . 2 Power . | . . . Propulsion 1 | . . 1 Utility 1 | . . 1 Weapon . | . . . Parts Attached 24 | 6 10 8 Power 3 | 1 2 . Engine 3 | 1 2 . Core . | . . . Reactor . | . . . Propulsion 5 | 2 1 2 Treads . | . . . Leg 5 | 2 1 2 Wheel . | . . . Hover . | . . . Flight . | . . . Utility 6 | 1 3 2 Device . | . . . Storage 4 | 1 3 . Processor . | . . . Hackware . | . . . Protection 2 | . . 2 Artifact . | . . . Weapon 10 | 2 4 4 Energy Gun 4 | 1 2 1 Energy Cannon . | . . . Ballistic Gun 3 | 1 1 1 Ballistic Cannon . | . . . Launcher 1 | . . 1 Special Weapon 2 | . 1 1 Impact Weapon . | . . . Slashing Weapon . | . . . Piercing Weapon . | . . . Special Melee Weapon . | . . . Unidentified Prototypes 1 | . 1 . Parts Lost 18 | . 6 12 Power 3 | . 2 1 Propulsion 5 | . 1 4 Utility 2 | . . 2 Weapon 8 | . 3 5 Highest Loss Streak 10 | . 4 10 Average Slot Usage (%) 76 | . 85 60 Engine 10 | . 12 7 Leg 23 | . 27 17 Storage 18 | . 17 22 Protection 1 | . . 5 Energy Gun 7 | . 10 3 Ballistic Gun 8 | . 10 4 Special Weapon 4 | . 6 . Naked Turns . | . . . Heaviest Build 50 | 10 43 50 Greatest Support 30 | 20 20 30 Greatest Overweight (x) 13 | . 2 13 Average Overweight (x) . | . . 3 Largest Inventory Capacity 16 | 6 16 16 Average Capacity 10 | 5 8 16 Most Carried 13 | 6 13 12 Average Carried 6 | 4 6 8 Final Capacity 16 | 6 16 16 Final Carried 13 | 6 13 8 Class Distribution -------------------- 100% | Mutant Dominant Class ---------------- Mutant | -10/Materials Mutant | -9/Materials Resources | -11 -10 -9 ----------- Run | Scr Mat Mat Matter Collected 429 | 269 72 88 Remotely . | . . . Salvage Created 417 | 157 145 115 Parts 19 | 5 8 6 Haulers Intercepted . | . . . Recyclers Shooed . | . . . Parts Field Recycled . | . . . Retrieved Matter . | . . . Parts Self-Destructed . | . . . Prevented . | . . . Kills | -11 -10 -9 ------- Run | Scr Mat Mat Combat Hostiles Destroyed 10 | . 7 3 Guns 7 | . 6 1 Cannons 1 | . 1 . AOE 2 | . . 2 Classes Destroyed 5 | 3 2 . Worker 2 | 2 . . Tunneler 1 | 1 . . Recycler 1 | 1 . . Swarmer 3 | . 3 . Grunt 7 | . 4 3 Best Kill Streak 4 | 3 4 2 Combat Bots Only 4 | . 4 2 Max Kills in Single Turn 1 | 1 1 1 Gunslinging . | . . . Exploded 1 | . . 1 Melee . | . . . Uniques/NPCs Destroyed . | . . . Combat | -11 -10 -9 -------- Run | Scr Mat Mat Damage Taken 2028 | . 605 1423 Core 544 | . 141 403 Absorbed by Shields . | . . . Core Remaining (%) 71 | 100 43 . Volleys Fired 52 | 9 25 18 Largest 2 | 2 2 2 Hottest 150 | 60 150 70 Shots Fired 80 | 18 41 21 Gun 68 | 18 36 14 Cannon . | . . . Launcher 3 | . . 3 Special 9 | . 5 4 Kinetic 35 | 9 18 8 Thermal 25 | . 15 10 Explosive 3 | . . 3 Electromagnetic 17 | 9 8 . Robot Hit Streak 15 | 4 8 15 Robot Miss Streak 3 | 2 3 2 Penetration Max . | . . . Secondary Targets 1 | . 1 . Max Gunslinging Chain 1 | . 1 . Shots Hit Robots 53 | 8 27 18 Core Hits 24 | 5 11 8 Critical Hits 1 | 1 . . Critical Kills . | . . . Critical Parts Destroyed 1 | 1 . . Melee Attacks . | . . . Impact . | . . . Slashing . | . . . Piercing . | . . . Sneak Attacks . | . . . Combat Hostiles . | . . . Follow-up Attacks . | . . . Damage Inflicted 745 | 93 338 314 Guns 474 | 93 242 139 Cannons . | . . . Explosions 153 | . . 153 Melee . | . . . Ramming . | . . . Kinetic 167 | 26 78 63 Thermal 307 | . 209 98 Explosive 153 | . . 153 Electromagnetic 118 | 67 51 . Impact . | . . . Slashing . | . . . Piercing . | . . . Highest Corruption . | . . . Average Corruption . | . . . Corruption Purged . | . . . Overload Shots . | . . . Overflow Damage 30 | . . 30 Projectiles . | . . . Explosions 30 | . . 30 Melee . | . . . Knockbacks . | . . . Impact . | . . . Kinetic . | . . . Secondary . | . . . Self-Inflicted Damage 118 | . . 118 Shots 3 | . . 3 Rammed . | . . . Targets Rammed . | . . . Kicked . | . . . Crushed . | . . . Highest Temperature 243 | 20 243 78 Average Temperature 54 | 15 80 16 Received Heat Transfer 687 | . 210 477 Siege Activations . | . . . Robots Corrupted . | . . . Combat Hostiles . | . . . Parts Fried . | . . . Impact Corruptions . | . . . Robots Melted . | . . . Combat Hostiles . | . . . Parts Melted 3 | . 1 2 Heat Transferred 792 | . 533 259 Parts Sabotaged . | . . . Parts Stolen . | . . . Parts Stripped . | . . . Power Chain Reactions . | . . . Missiles Intercepted . | . . . Alert | -11 -10 -9 ------- Run | Scr Mat Mat Peak Influence 153 | 20 153 99 Initial 64 | . 13 64 Average 77 | 7 119 52 Maximum Alert Level . | . . . Low Security (%) 100 | 100 100 100 Level 1 . | . . . Level 2 . | . . . Level 3 . | . . . Level 4 . | . . . Level 5 . | . . . High Security . | . . . Max Security . | . . . Squads Dispatched 2 | . 2 . Investigation 1 | . 1 . Extermination . | . . . Reinforcement 1 | . 1 . Assault . | . . . Garrison . | . . . Intercept . | . . . Construction Impeded . | . . . Haulers Reinforced . | . . . Stealth | -11 -10 -9 --------- Run | Scr Mat Mat Distress Signals . | . . . Communications Jammed . | . . . Distress Signals . | . . . Times Spotted 18 | . 12 6 Peak Tracking Total 4 | . 4 4 Tactical Retreats . | . . . Traps | -11 -10 -9 ------- Run | Scr Mat Mat Traps Triggered 1 | . 1 . Indirectly . | . . . Trap Hack Attempts . | . . . Triggered . | . . . Disarmed . | . . . Reprogrammed . | . . . Reused . | . . . Traps Extracted . | . . . Installed . | . . . Triggered . | . . . Machines | -11 -10 -9 ---------- Run | Scr Mat Mat Machines Disabled 2 | . 2 . Max in Single Turn 1 | . 1 . Machines Sabotaged . | . . . Garrisons Compromised . | . . . Overloaded Fab Kills . | . . . Fab Network Shutdowns . | . . . Hacking | -11 -10 -9 --------- Run | Scr Mat Mat Machines Accessed . | . . . Terminals . | . . . Fabricators . | . . . Repair Stations . | . . . Recycling Units . | . . . Scanalyzers . | . . . Garrison Access . | . . . Total Hacks . | . . . Successful . | . . . Failed . | . . . Catastrophic . | . . . Database Lockouts . | . . . Manual . | . . . Terminals . | . . . Fabricators . | . . . Repair Stations . | . . . Recycling Units . | . . . Scanalyzers . | . . . Garrison Access . | . . . Terminal Hacks . | . . . Fabricator Hacks . | . . . Repair Station Hacks . | . . . Recycling Unit Hacks . | . . . Scanalyzer . | . . . Garrison Access Hacks . | . . . Unauthorized Hacks . | . . . Terminals . | . . . Fabricators . | . . . Repair Stations . | . . . Recycling Units . | . . . Scanalyzers . | . . . Garrison Access . | . . . Data Cores Recovered . | . . . Used . | . . . Hacking Detections . | . . . Full Trace Events . | . . . Feedback Events . | . . . Feedback Blocked . | . . . Robot Schematics Acquired . | . . . Robots Built . | . . . Matter . | . . . Time . | . . . Total Robot Build Rating . | . . . Part Schematics Acquired . | . . . Parts Built . | . . . Matter . | . . . Time . | . . . Total Part Build Rating . | . . . Parts Repaired . | . . . Time . | . . . Parts Recycled . | . . . Recycled Matter . | . . . Retrieved Matter . | . . . Retrieved Components . | . . . Parts Scanalyzed . | . . . Part Schematics Acquired . | . . . Parts Damaged . | . . . Bothacking | -11 -10 -9 ------------ Run | Scr Mat Mat Used RIF Installer . | . . . Robots Hacked . | . . . Non-combat . | . . . Combat . | . . . Robot Hacks Applied . | . . . Relay Couplers Released . | . . . Robots Rewired . | . . . Allies Hacked . | . . . Hacks Repelled . | . . . Allies | -11 -10 -9 -------- Run | Scr Mat Mat Total Allies . | . . . Largest Group . | . . . Highest-Rated Group . | . . . Highest-Rated Ally . | . . . Total Orders . | . . . Ally Attacks . | . . . Total Damage . | . . . Kills . | . . . Allies Corrupted . | . . . Allies Melted . | . . . Intel | -11 -10 -9 ------- Run | Scr Mat Mat Robot Analysis Total . | . . . Derelict Logs Recovered . | . . . Drone Launches . | . . . Drone Recoveries . | . . . Exploration | -11 -10 -9 ------------- Run | Scr Mat Mat Turns Passed 725 | 143 364 218 Spaces Moved 349 | 88 193 68 Core 21 | 8 . 13 Treads . | . . . Legs 328 | 80 193 55 Wheels . | . . . Hover . | . . . Flight . | . . . Fastest Speed 50 | 50 120 150 Average Speed 149 | 113 131 244 Slowest Speed 700 | 120 180 700 Overloaded Moves . | . . . Propulsion Burnouts . | . . . Robots Hopped . | . . . Cave-ins Triggered . | . . . Exploration Rate (%) 13 | 6 25 8 Regions Visited 2 Branch Regions . Pre-discovered Areas . | . . . Known Exits Taken . | . . . Unknown Exits Taken 2 | 1 1 . Scrap Searched . | . . . Spaces Dug . | . . . Terrain Destroyed 13 | . 1 12 Melee . | . . . Projectile 1 | . 1 . AOE 12 | . . 12 Terrain Rammed . | . . . Walls Destroyed . | . . . Machines Disabled . | . . . Actions | -11 -10 -9 --------- Run | Scr Mat Mat Total 469 | 115 258 96 Wait 4 | . 4 . Move 347 | 87 192 68 Hop . | . . . Pick Up 33 | 12 19 2 Fast Attach 3 | 1 2 . Attach 18 | 5 6 7 Detach . | . . . Swap 3 | . 2 1 Drop 9 | 1 8 . Fire 52 | 9 25 18 Melee . | . . . Ram . | . . . Kick . | . . . Crush . | . . . Escape Stasis . | . . . Rewire . | . . . Trap . | . . . Miscellaneous . | . . . Route ------- -11/Scrapyard -10/Materials -9/Materials History --------- Turn | Location | Event 14 | -11/Scrapyard | Discovered new exit (range 16) 144 | -11/Scrapyard | Entered Materials 317 | -10/Materials | Build established: Mutant 368 | -10/Materials | Core integrity fell below 50% 410 | -10/Materials | Lost 4 parts (1p1n2w) 431 | -10/Materials | Discovered new exit (range 15) 508 | -10/Materials | Entered another Materials area 508 | -9/Materials | Evolved 2 slots: Propulsion x1, Utility x1 647 | -9/Materials | Lost 10 parts (3n2u5w) 663 | -9/Materials | Core integrity fell below 50% 702 | -9/Materials | Core integrity fell below 20% 726 | -9/Materials | Destroyed by Y-45 Defender with Heavy Assault Rifle Last Messages --------------- 00604_ Critical hit. 00604_ Grenade Launcher destroyed. 00606_ Acquired 32 matter. 00607_ R-06 Scavenger collects Ion Engine. 00607_ K-01 Serf collects debris. 00608_ The unstable cave ceiling collapses. 00609_ Acquired Particle Gun. 00610_ Aluminum Leg destroyed. 00612_ The unstable cave ceiling collapses. 00612_ R-06 Scavenger collects Aluminum Leg. 00616_ Particle Gun destroyed. 00619_ U-05 Engineer lays Concrete. 00623_ Acquired 13 matter. 00623_ U-05 Engineer lays Concrete. 00625_ Acquired 43 matter. 00626_ U-05 Engineer lays Concrete. 00629_ Acquired Aluminum Leg. 00630_ U-05 Engineer lays Concrete. 00653_ Aluminum Leg destroyed. 00656_ Hvy. Ion Engine destroyed. Map ----- +----------------------------------------------------+ | ?????????????????????????????????????????????????? | | ?????????????????????????????????????????????????? | | ?????????????????????????????????????????????????? | | ?????????????????????????????????????????????????? | | ?????????????????????????????????????????????????? | | ?????????????????????????????????????????????????? | | ?????????????????????????????????????????????????? | | ??????????????????????????????????????????????#### | | ??????????????????????????????????????????????# | | ??????????????????????????????????????????????# | | ??????????????????????????????????????????????# | | ??????????????????????????????????????????????# | | ??????????????????????????????????????????????# | | ??????????????????????????????????????????????# | | ??????????????????????????????????????????????# | | ??????????????????????????????????????????????# | | ????????????????????????????????????########### | | ????????????????????????????????????# # | | ????????????????????????????###?????# """ """ # | | ????????????????????????????# +?????# """ """ # | | ????????????????????????????# #?????# """ """ + | | ????????????????????????????# ##+#??# # | | ????????????????????????????# #??# # | | ????????????????????????????# #??# # | | ??????????????????????# ##### #### # | | ??????????????????????# @ Y ####+######## | | ??????????????????????# ########### #??# #??????? | | ??????????????????????????# ## #### ######## | | ??????????????????????????# # ## | | ??????????????????????????# + | | ??????????????????????????# # ### ## # | | ??????????????????????????# "Y" ## ## % # | | ??????????????????????????# """ ## ## # | | ??????????????????????????######### + # | | ??????????????????????????????????# ## "" | | ??????????????????????????????????# ## ## | | ??????????????????????????????????# ## #? | | ??????????????????????????????????# #########?? | | ??????????????????????????????????# #?????????? | | ??????????????????????????????????# #??????????? | | ??????????????????????????????????# #??????????? | | ?????????????????????????????????? ???????????? | | ??????????????????????????????????###???????????? | | ?????????????????????????????????????????????????? | | ?????????????????????????????????????????????????? | | ?????????????????????????????????????????????????? | | ?????????????????????????????????????????????????? | | ?????????????????????????????????????????????????? | | ?????????????????????????????????????????????????? | | ?????????????????????????????????????????????????? | +----------------------------------------------------+ Best States ------------- Heat Dissipation 28 Energy Generation 14 Energy Capacity 280 Matter Stores 300 Matter Capacity 300 Sight Range 16 Terrain Scan Density 10 Armor Coverage 225 Evasion (%) 50 Item Schematics ----------------- None Robot Schematics ------------------ None Fabricated ------------ Nothing Alien Tech Used ----------------- None Achievements -------------- None Challenges ------------ None Game ------ Seed ThrusterTargetingLoader Manual? 0 Play Time 00:14:13 Cumulative 7.6 hours Start 2021.05.18 @ 12:23:45 End 2021.05.18 @ 12:41:39 Sessions 2 Manual Loads 0 Difficulty Rogue Special Mode None Game No. 9 Rogue 9 Adventurer 0 Explorer 0 Win Type - Total 0 Types 0/0/0/0/0/0/0/0/0 Lore% 13 Gallery% 11 Achievement% 10 Wizard Run 0 Options --------- ASCII 0 Keyboard 0 Movement Mouse Keybinds 0 Fullscreen 1 Font 18/CogNarrow Map View 76x50 Tactical HUD 1 Map Filters NONE Filters NONE Steam 1 RUN: 4a5e71e9-2379-4c64-8ba6-fbc4dc728aab